bitfinex/quotes_SOLUSD_20220227
["timestamp","ask_amount","ask_price","bid_price","bid_amount"]
[1645936694224,55.75864372,87.319,87.237,4.583]
[1645936694429,55.75864372,87.319,87.241,114.9]
[1645936694624,55.75864372,87.319,87.242,4.582]
[1645936695028,55.75864372,87.319,87.243,114.9]
[1645936695225,55.75864372,87.319,87.244,4.582]
[1645936695429,55.75864372,87.319,87.246,114.9]
[1645936695627,55.75864372,87.319,87.251,114.9]
[1645936695826,55.75864372,87.319,87.252,4.582]
[1645936696728,23.0899,87.32,87.252,4.582]
[1645936696928,23.0899,87.32,87.261,114.9]
[1645936697129,23.0899,87.32,87.263,114.9]
[1645936697328,23.0899,87.32,87.264,4.582]
[1645936697528,23.0899,87.32,87.265,114.9]
[1645936697727,23.0899,87.32,87.266,4.582]
[1645936697929,60.9388843,87.319,87.271,114.9]
[1645936698327,60.9388843,87.319,87.273,114.9]
[1645936698926,1.66329487,87.359,87.273,114.9]
[1645936699729,21.67492367,87.363,87.274,5.10200892]
[1645936699927,42.97657066,87.358,87.275,114.9]
[1645936700131,42.97657066,87.358,87.277,114.9]
[1645936700328,42.97657066,87.358,87.279,114.9]
[1645936700528,42.97657066,87.358,87.281,114.9]
[1645936700731,42.97657066,87.358,87.282,2.82534764]
[1645936701028,42.97657066,87.358,87.284,114.9]
[1645936701429,42.97657066,87.358,87.285,2.52551952]
[1645936701629,42.97657066,87.358,87.285,5.27230873]
[1645936701831,42.97657066,87.358,87.286,2.74678921]
[1645936705535,42.97657066,87.358,87.291,114.9]
[1645936706536,42.97657066,87.358,87.29,16.57]
[1645936707434,42.97657066,87.358,87.291,114.9]
[1645936708739,42.97657066,87.358,87.291,119.48]
[1645936708937,42.97657066,87.358,87.291,4.58]
[1645936709138,1.2732173,87.365,87.292,2.74678921]
[1645936709338,1.2732173,87.365,87.293,143.6426]
[1645936709540,1.2732173,87.365,87.294,3.04470855]
[1645936709738,1.2732173,87.365,87.295,119.73]
[1645936709939,1.2732173,87.365,87.311,114.9]
[1645936710138,1.2732173,87.365,87.313,114.9]
[1645936710340,1.2732173,87.365,87.314,2.64821978]
[1645936710539,1.2732173,87.365,87.321,114.9]
[1645936710738,1.2732173,87.365,87.323,114.9]
[1645936710938,1.2732173,87.365,87.324,2.28526132]
[1645936711340,1.2732173,87.365,87.324,5.03205053]
[1645936711539,42.96639934,87.392,87.325,1.47357191]
[1645936711739,42.96639934,87.392,87.331,114.9]
[1645936711938,42.96639934,87.392,87.332,2.35529601]
[1645936712138,42.96639934,87.392,87.331,114.9]
[1645936712338,42.96639934,87.392,87.333,114.9]
[1645936712942,23.4552,87.427,87.333,114.9]
[1645936713139,23.4552,87.427,87.335,114.9]
[1645936713539,23.4552,87.427,87.335,122.64]
[1645936713740,24.92906156,87.427,87.335,122.64]
[1645936713940,60.36000145,87.426,87.335,122.64]
[1645936714742,1.46152946,87.425,87.335,122.64]
[1645936716445,1.46152946,87.425,87.335,139.6809]
[1645936716642,60.36000145,87.426,87.34,17.1697]
[1645936716844,60.36000145,87.426,87.343,114.9]
[1645936717044,60.36000145,87.426,87.344,2.3087437]
[1645936717247,60.36000145,87.426,87.343,114.9]
[1645936717445,60.36000145,87.426,87.344,139.3382]
[1645936717646,60.36000145,87.426,87.344,24.4382]
[1645936717845,4.19399534,87.425,87.344,24.4382]
[1645936718247,2.74678921,87.424,87.344,24.4382]
[1645936720048,2.74678921,87.424,87.344,139.3382]
[1645936720249,2.74678921,87.424,87.344,24.4382]
[1645936727153,2.74678921,87.424,87.344,147.8582]
[1645936727452,60.36000145,87.426,87.351,114.9]
[1645936729653,60.36000145,87.426,87.352,2.86274261]
[1645936736057,60.36000145,87.426,87.35,33.7372]
[1645936736259,1.5998725,87.425,87.344,24.4382]
[1645936736559,4.34666171,87.425,87.344,24.4382]
[1645936736761,2.74678921,87.424,87.344,24.4382]
[1645936737158,2.74678921,87.424,87.344,139.3382]
[1645936738259,2.74678921,87.424,87.344,24.4382]
[1645936740164,2.74678921,87.424,87.344,139.3382]
[1645936740364,2.74678921,87.424,87.344,24.4382]
[1645936745896,2.74678921,87.424,87.344,139.3382]
[1645936746297,2.74678921,87.424,87.344,24.4382]
[1645936746697,2.74678921,87.424,87.344,139.3382]
[1645936746897,2.74678921,87.424,87.344,24.4382]
[1645936750200,2.74678921,87.424,87.344,139.3382]
[1645936750400,60.36000145,87.426,87.351,114.9]
[1645936761911,60.36000145,87.426,87.352,4.577]
[1645936763211,60.36000145,87.426,87.351,114.9]
[1645936771821,60.36000145,87.426,87.351,119.477]
[1645936779541,60.36000145,87.426,87.352,3.12155382]
[1645936779744,60.36000145,87.426,87.353,4.577]
[1645936780143,60.36000145,87.426,87.355,114.9]
[1645936780842,60.36000145,87.426,87.356,4.577]
[1645936782447,60.36000145,87.426,87.36,17.1658]
[1645936782644,60.36000145,87.426,87.362,2.75709968]
[1645936782846,1.81591686,87.469,87.363,4.575]
[1645936783046,1.81872575,87.477,87.366,2.48474319]
[1645936783247,1.81872575,87.477,87.381,114.9]
[1645936783545,1.81872575,87.477,87.383,114.9]
[1645936783843,1.75510059,87.475,87.386,2.68779078]
[1645936784046,1.75510059,87.475,87.391,114.9]
[1645936784647,1.75510059,87.475,87.39,16.57]
[1645936793657,1.75510059,87.475,87.391,114.9]
[1645936793855,1.75510059,87.475,87.392,22.5757]
[1645936796359,1.75510059,87.475,87.393,114.9]
[1645936796557,1.75510059,87.475,87.392,22.5757]
[1645936798961,1.75510059,87.475,87.393,114.9]
[1645936800260,1.75510059,87.475,87.392,22.5757]
[1645936801764,4.5018898,87.475,87.392,22.5757]
[1645936808268,21.76175139,87.474,87.392,22.5757]
[1645936808467,16.57,87.47,87.392,22.5757]
[1645936808667,6.41175402,87.469,87.381,4.574]
[1645936808868,114.9,87.468,87.381,4.574]
[1645936809067,114.9,87.466,87.381,4.574]
[1645936809292,6.32277473,87.465,87.381,4.574]
[1645936809467,24.21061963,87.465,87.381,4.574]
[1645936809667,1.53098051,87.464,87.381,4.574]
[1645936809866,16.57,87.45,87.381,4.574]
[1645936810067,59.69959718,87.448,87.381,4.574]
[1645936810268,6.04801415,87.447,87.381,4.574]
[1645936810468,17.1749,87.44,87.351,23.0946]
[1645936810670,1.59179292,87.439,87.351,23.0946]
[1645936810868,4.33858213,87.439,87.351,23.0946]
[1645936811167,1.56495181,87.437,87.351,23.0946]
[1645936811368,1.42000328,87.435,87.351,23.0946]
[1645936811568,1.42000328,87.435,87.324,3.0315765]
[1645936811771,1.43723812,87.429,87.311,24.677]
[1645936811970,1.3587274,87.419,87.311,24.677]
[1645936812170,6.39176712,87.418,87.312,47.82073049]
[1645936812368,24.71294536,87.418,87.312,47.82073049]
[1645936812569,68.08142274,87.418,87.312,47.82073049]
[1645936812768,1.82344954,87.416,87.312,47.82073049]
[1645936812969,4.578,87.415,87.312,47.82073049]
[1645936813171,40.08292963,87.415,87.312,47.82073049]
[1645936813374,41.63685801,87.414,87.312,47.82073049]
[1645936813572,16.57,87.4,87.301,24.5205]
[1645936813772,30.61592152,87.399,87.301,24.5205]
[1645936813973,1.72702582,87.398,87.301,24.5205]
[1645936814173,119.479,87.397,87.29,2.32050329]
[1645936814383,1.77983344,87.396,87.272,25.61352494]
[1645936814574,119.48,87.395,87.273,48.72981402]
[1645936814774,16.57,87.38,87.273,48.72981402]
[1645936814973,44.65387085,87.378,87.273,48.72981402]
[1645936815172,6.37087737,87.377,87.273,48.72981402]
[1645936815374,9.11766658,87.377,87.273,48.72981402]
[1645936815573,1.53523101,87.375,87.273,48.72981402]
[1645936815774,4.58,87.374,87.273,48.72981402]
[1645936815974,1.83859304,87.369,87.273,48.72981402]
[1645936816174,1.47359111,87.367,87.273,48.72981402]
[1645936816794,7.32678921,87.366,87.273,48.72981402]
[1645936817195,2.74678921,87.365,87.273,48.72981402]
[1645936819198,16.57,87.36,87.261,23.4199]
[1645936819400,6.08783888,87.359,87.261,23.4199]
[1645936819602,24.40849712,87.359,87.261,23.4199]
[1645936819800,17.13114411,87.358,87.261,23.4199]
[1645936820000,28.94439744,87.357,87.261,23.4199]
[1645936820200,1.52579451,87.356,87.261,23.4199]
[1645936820401,4.581,87.355,87.261,23.4199]
[1645936820603,6.28551782,87.355,87.261,23.4199]
[1645936820804,24.60617606,87.355,87.261,23.4199]
[1645936821003,20.13979264,87.354,87.261,23.4199]
[1645936821204,16.57,87.35,87.261,23.4199]
[1645936821403,55.00439531,87.348,87.261,23.4199]
[1645936821606,6.09847613,87.347,87.261,23.4199]
[1645936822005,8.84526534,87.347,87.261,23.4199]
[1645936822206,2.74678921,87.346,87.261,23.4199]
[1645936826613,55.00439531,87.348,87.262,3.03656745]
[1645936829420,57.75118452,87.348,87.262,3.03656745]
[1645936830618,57.75118452,87.348,87.263,2.68403131]
[1645936831119,55.00439531,87.348,87.263,2.68403131]
[1645936836520,55.00439531,87.348,87.265,2.47918689]
[1645936841228,22.6673,87.347,87.265,2.47918689]
[1645936844450,4.40770019,87.346,87.261,23.4199]
[1645936844654,4.581,87.345,87.261,23.4199]
[1645936844851,7.32778921,87.345,87.261,23.4199]
[1645936845053,2.74678921,87.345,87.261,23.4199]
[1645936845252,2.74678921,87.344,87.262,53.1496778]
[1645936846754,2.74678921,87.344,87.263,2.78179606]
[1645936851065,1.09739837,87.344,87.263,2.78179606]
[1645936854462,22.6673,87.347,87.263,2.78179606]
[1645936868077,38.74707108,87.346,87.261,23.4199]
[1645936868277,120.87668861,87.345,87.261,23.4199]
[1645936868476,1.79586232,87.329,87.261,23.4199]
[1645936868679,6.18447444,87.328,87.261,23.4199]
[1645936869077,1.69506818,87.327,87.261,23.4199]
[1645936869301,6.22807007,87.326,87.261,23.4199]
[1645936869477,47.44929042,87.326,87.261,23.4199]
[1645936869678,18.23896679,87.325,87.261,23.4199]
[1645936869980,6.3361712,87.324,87.215,23.4171]
[1645936870178,16.57,87.31,87.216,47.3154]
[1645936870377,81.7492212,87.309,87.216,100.46397594]
[1645936870581,1.64139911,87.308,87.216,100.46397594]
[1645936870779,4.38818832,87.308,87.216,100.46397594]
[1645936870979,4.38818832,87.308,87.217,2.61484654]
[1645936871178,7.32978921,87.307,87.217,2.61484654]
[1645936871378,2.74678921,87.307,87.217,2.61484654]
[1645936871582,11.51678921,87.307,87.217,2.61484654]
[1645936873086,2.74678921,87.307,87.217,2.61484654]
[1645936873787,19.59258921,87.307,87.217,2.61484654]
[1645936875387,16.8458,87.307,87.217,2.61484654]
[1645936877505,40.55494272,87.307,87.217,2.61484654]
[1645936879106,66.20229404,87.307,87.217,2.61484654]
[1645936879810,68.94908325,87.307,87.217,2.61484654]
[1645936893430,84.51142561,87.307,87.217,2.61484654]
[1645936895735,1.78822439,87.306,87.216,100.46397594]
[1645936896134,52.09704325,87.305,87.216,100.46397594]
[1645936896335,1.47050037,87.304,87.216,100.46397594]
[1645936896536,16.57,87.3,87.216,100.46397594]
[1645936896736,24.3756,87.299,87.216,100.46397594]
[1645936897137,27.12238921,87.299,87.216,100.46397594]
[1645936899036,27.84928936,87.298,87.216,100.46397594]
[1645936899439,28.38790053,87.297,87.216,100.46397594]
[1645936899843,4.14702601,87.296,87.216,100.46397594]
[1645936900341,2.74678921,87.295,87.216,100.46397594]
[1645936902342,25.64111132,87.294,87.216,100.46397594]
[1645936902541,1.77739274,87.293,87.216,47.3154]
[1645936902746,1.79079553,87.289,87.216,23.5371]
[1645936903062,4.583,87.288,87.216,23.5371]
[1645936903243,48.53324289,87.288,87.216,23.5371]
[1645936903444,50.75725644,87.287,87.216,23.5371]
[1645936903643,1.68708007,87.286,87.216,23.5371]
[1645936903942,1.65973113,87.285,87.216,23.5371]
[1645936904143,16.57,87.28,87.216,23.5371]
[1645936904344,57.85551018,87.279,87.216,23.5371]
[1645936904741,60.60229939,87.279,87.216,23.5371]
[1645936904941,2.74678921,87.278,87.216,23.5371]
[1645936905343,22.868,87.277,87.216,23.5371]
[1645936905743,2.74678921,87.276,87.216,23.5371]
[1645936905944,52.09704325,87.276,87.216,23.5371]
[1645936906145,25.64111132,87.275,87.216,23.5371]
[1645936906344,28.38790053,87.275,87.216,23.5371]
[1645936906546,2.74678921,87.274,87.216,23.5371]
[1645936911176,28.38790053,87.274,87.216,23.5371]
[1645936911473,2.74678921,87.273,87.216,23.5371]
[1645936914176,49.35025404,87.272,87.216,23.5371]
[1645936914378,16.57,87.27,87.216,23.5371]
[1645936914777,2.74678921,87.269,87.216,23.5371]
[1645936915177,22.868,87.277,87.216,23.5371]
[1645936919879,25.61478921,87.277,87.216,23.5371]
[1645936924984,49.32393193,87.277,87.216,23.5371]
[1645936927989,25.61478921,87.277,87.216,23.5371]
[1645936933093,23.70914272,87.276,87.216,23.5371]
[1645936934194,25.61478921,87.277,87.216,23.5371]
[1645936936598,23.70914272,87.276,87.216,23.5371]
[1645936937901,2.74678921,87.275,87.216,23.5371]
[1645936938300,2.74678921,87.275,87.217,2.51260509]
[1645936954035,22.868,87.277,87.217,2.51260509]
[1645936962046,57.85551018,87.279,87.217,2.51260509]
[1645936962247,23.70914272,87.305,87.218,2.3778522]
[1645936962446,23.70914272,87.305,87.22,2.84502148]
[1645936962649,24.1425,87.309,87.22,2.84502148]
[1645936962847,24.1425,87.309,87.222,117.39813416]
[1645936963046,24.1425,87.309,87.223,7.05482025]
[1645936963251,47.86323784,87.308,87.225,2.75923818]
[1645936963447,47.86323784,87.308,87.226,4.583]
[1645936963648,47.86323784,87.308,87.228,63.34174221]
[1645936963849,47.86323784,87.308,87.229,2.31793354]
[1645936964047,47.86323784,87.308,87.23,2.59025765]
[1645936964451,47.86323784,87.308,87.229,32.29625396]
[1645936964452,47.86323784,87.308,87.232,2.84663211]
[1645936965350,47.86323784,87.308,87.233,4.583]
[1645936965954,23.62247606,87.33,87.234,2.74678921]
[1645936966153,4.582,87.358,87.235,4.832]
[1645936966353,4.582,87.358,87.236,114.9]
[1645936966652,23.62247606,87.356,87.252,2.42213586]
[1645936966853,23.62247606,87.356,87.255,56.54291475]
[1645936966854,48.4966762,87.354,87.255,56.54291475]
[1645936967052,48.4966762,87.354,87.256,2.62454382]
[1645936967252,72.11915226,87.354,87.26,16.57]
[1645936967453,72.11915226,87.354,87.261,2.29149242]
[1645936968854,72.11915226,87.354,87.262,4.581]
[1645936969056,72.11915226,87.354,87.263,24.7812]
[1645936969254,72.11915226,87.354,87.264,2.4416756]
[1645936969954,2.74678921,87.353,87.264,2.4416756]
[1645936970357,23.62247606,87.352,87.265,4.581]
[1645936971355,23.62247606,87.352,87.265,7.3396509]
[1645936973561,23.62247606,87.352,87.266,114.9]
[1645936973759,23.62247606,87.352,87.268,114.9]
[1645936973957,23.62247606,87.352,87.266,8.09]
[1645936973958,23.62247606,87.352,87.27,114.9]
[1645936974159,23.62247606,87.352,87.272,114.9]
[1645936974359,23.62247606,87.352,87.266,8.09]
[1645936974360,23.62247606,87.352,87.275,2.95264195]
[1645936974560,23.62247606,87.352,87.276,4.581]
[1645936974959,23.62247606,87.352,87.275,2.95264195]
[1645936980368,2.74678921,87.351,87.275,2.95264195]
[1645936980869,23.62247606,87.35,87.275,2.95264195]
[1645936983069,23.62247606,87.35,87.273,23.9333]
[1645936983270,1.64289502,87.349,87.273,23.9333]
[1645936983470,6.38465125,87.348,87.273,23.9333]
[1645936983672,1.37537164,87.347,87.273,23.9333]
[1645936983874,4.581,87.346,87.273,23.9333]
[1645936984072,29.36098445,87.346,87.273,23.9333]
[1645936984271,32.10777366,87.346,87.273,23.9333]
[1645936984472,51.09834092,87.345,87.273,23.9333]
[1645936984674,6.3841315,87.344,87.273,23.9333]
[1645936984873,32.75339677,87.344,87.273,23.9333]
[1645936985073,4.52907285,87.343,87.273,23.9333]
[1645936985274,4.581,87.342,87.273,23.9333]
[1645936985475,32.50970176,87.342,87.273,23.9333]
[1645936985702,28.14007169,87.341,87.273,23.9333]
[1645936985902,4.581,87.34,87.273,23.9333]
[1645936986103,32.77797257,87.34,87.273,23.9333]
[1645936986301,27.85250485,87.339,87.273,23.9333]
[1645936986504,24.3875,87.338,87.273,23.9333]
[1645936986802,27.13428921,87.338,87.273,23.9333]
[1645936987002,2.74678921,87.337,87.273,23.9333]
[1645936987603,23.62247606,87.336,87.273,23.9333]
[1645936988005,2.74678921,87.335,87.273,23.9333]
[1645936988405,23.62247606,87.334,87.273,23.9333]
[1645936988806,2.74678921,87.333,87.273,23.9333]
[1645936989207,23.62247606,87.332,87.273,23.9333]
[1645936991708,2.74678921,87.331,87.273,23.9333]
[1645937001627,2.74678921,87.331,87.248,4.581]
[1645937001628,2.74678921,87.331,87.256,23.36]
[1645937001831,63.10159405,87.33,87.256,23.36]
[1645937002029,6.17884776,87.329,87.256,23.36]
[1645937002229,30.2379072,87.329,87.248,4.581]
[1645937002428,116.3238129,87.328,87.248,4.581]
[1645937002628,53.00109153,87.327,87.223,42.85385294]
[1645937002828,1.53279749,87.326,87.223,42.85385294]
[1645937003027,22.90911799,87.326,87.223,42.85385294]
[1645937003228,24.49605059,87.325,87.223,42.85385294]
[1645937003429,4.583,87.324,87.222,23.36]
[1645937003629,114.9,87.309,87.192,26.08302128]
[1645937003829,142.378,87.308,87.193,22.7692]
[1645937004034,1.47591256,87.307,87.193,22.7692]
[1645937004229,4.583,87.306,87.193,22.7692]
[1645937004450,1.69618062,87.305,87.194,45.84926415]
[1645937004650,6.44773203,87.304,87.194,45.84926415]
[1645937004847,45.72454008,87.289,87.194,45.84926415]
[1645937005049,28.6812,87.288,87.194,45.84926415]
[1645937005250,1.73708593,87.287,87.194,45.84926415]
[1645937005449,4.585,87.286,87.194,45.84926415]
[1645937005650,7.33178921,87.286,87.194,45.84926415]
[1645937005849,23.62247606,87.285,87.194,45.84926415]
[1645937006051,16.57,87.28,87.194,45.84926415]
[1645937006349,25.42926564,87.279,87.194,45.84926415]
[1645937006548,1.79265173,87.278,87.194,45.84926415]
[1645937006748,1.37158258,87.276,87.194,45.84926415]
[1645937007349,2.74678921,87.275,87.194,45.84926415]
[1645937007950,23.62247606,87.274,87.193,22.7692]
[1645937008150,16.57,87.27,87.193,22.7692]
[1645937008349,1.58384158,87.269,87.193,22.7692]
[1645937008551,27.95310685,87.269,87.193,22.7692]
[1645937008752,1.37091452,87.268,87.193,22.7692]
[1645937009050,2.74678921,87.267,87.194,53.66040226]
[1645937009252,27.02878921,87.267,87.194,53.66040226]
[1645937009653,2.74678921,87.266,87.194,53.66040226]
[1645937010854,26.36926527,87.266,87.194,53.66040226]
[1645937011256,2.74678921,87.265,87.194,53.66040226]
[1645937013655,2.74678921,87.265,87.193,22.7692]
[1645937013854,4.585,87.264,87.193,22.7692]
[1645937014054,6.45878499,87.264,87.193,22.7692]
[1645937014254,26.36926527,87.263,87.193,22.7692]
[1645937014455,16.57,87.26,87.193,22.7692]
[1645937014659,48.79248627,87.259,87.193,22.7692]
[1645937015057,4.585,87.258,87.193,22.7692]
[1645937015256,7.33178921,87.258,87.161,2.91799889]
[1645937015555,2.74678921,87.257,87.151,7.14350459]
[1645937015756,4.586,87.256,87.151,51.4148]
[1645937015956,4.586,87.256,87.152,56.79040681]
[1645937016156,2.74678921,87.255,87.153,7.42406436]
[1645937016358,16.57,87.25,87.153,2.83806436]
[1645937016761,2.74678921,87.249,87.153,2.83806436]
[1645937016957,26.36926527,87.249,87.153,2.83806436]
[1645937017361,4.587,87.248,87.153,2.83806436]
[1645937017560,26.36926527,87.249,87.154,4.587]
[1645937018059,4.587,87.248,87.153,2.83806436]
[1645937018259,23.5218,87.247,87.153,2.83806436]
[1645937018461,4.587,87.246,87.153,2.83806436]
[1645937020964,23.5218,87.247,87.153,2.83806436]
[1645937021666,47.14427606,87.247,87.153,2.83806436]
[1645937021864,47.14427606,87.247,87.153,7.42506436]
[1645937023166,4.52020773,87.246,87.153,7.42506436]
[1645937023365,4.587,87.245,87.151,46.8288]
[1645937023565,49.48638326,87.245,87.151,46.8288]
[1645937023766,1.46024638,87.244,87.151,46.8288]
[1645937023966,16.57,87.24,87.151,46.8288]
[1645937024165,1.65460814,87.239,87.152,53.22368157]
[1645937024365,4.587,87.238,87.152,53.22368157]
[1645937024567,4.587,87.238,87.152,53.18937217]
[1645937024765,47.3735457,87.237,87.152,53.18937217]
[1645937024968,25.02341963,87.236,87.152,53.18937217]
[1645937025865,48.64589569,87.236,87.152,53.18937217]
[1645937026066,51.3926849,87.236,87.152,53.18937217]
[1645937030669,74.85646956,87.236,87.152,53.18937217]
[1645937031771,88.93854559,87.236,87.152,53.18937217]
[1645937035072,87.23072596,87.236,87.153,3.0997349]
[1645937036773,1.86939592,87.235,87.152,53.18937217]
[1645937037273,1.61242425,87.233,87.152,53.18937217]
[1645937037674,49.84171659,87.232,87.152,53.18937217]
[1645937037875,16.57,87.23,87.152,53.18937217]
[1645937038277,40.4513413,87.229,87.152,53.18937217]
[1645937038481,63.92379262,87.229,87.152,53.18937217]
[1645937038678,63.92379262,87.228,87.152,53.18937217]
[1645937039080,49.84171659,87.227,87.152,53.18937217]
[1645937039479,74.35821659,87.226,87.152,53.18937217]
[1645937039881,26.36926527,87.225,87.152,53.18937217]
[1645937040279,26.36926527,87.224,87.152,53.18937217]
[1645937040480,42.96394811,87.223,87.152,53.18937217]
[1645937040684,45.71073732,87.223,87.152,53.18937217]
[1645937040980,2.74678921,87.222,87.152,53.18937217]
[1645937041382,47.09492738,87.221,87.151,46.8288]
[1645937041779,26.21924053,87.22,87.151,46.8288]
[1645937041981,49.84171659,87.22,87.151,46.8288]
[1645937042282,47.09492738,87.219,87.151,46.8288]
[1645937042682,47.09492738,87.218,87.151,46.8288]
[1645937043080,47.09492738,87.217,87.151,46.8288]
[1645937043484,23.62247606,87.216,87.151,46.8288]
[1645937043684,46.99317606,87.216,87.151,46.8288]
[1645937045286,49.73996527,87.216,87.151,46.8288]
[1645937051414,42.96394811,87.223,87.152,2.48256934]
[1645937054516,22.6864,87.222,87.152,2.48256934]
[1645937063025,42.96394811,87.223,87.152,2.48256934]
[1645937066628,23.7271,87.222,87.152,2.48256934]
[1645937070432,0.60040678,87.221,87.152,2.48256934]
[1645937070631,23.62247606,87.221,87.152,2.48256934]
[1645937070834,26.36926527,87.221,87.151,46.8288]
[1645937071036,30.95626527,87.221,87.151,46.8288]
[1645937071233,23.62247606,87.22,87.151,46.8288]
[1645937072837,23.62247606,87.22,87.151,45.99727158]
[1645937075538,23.7271,87.222,87.151,45.99727158]
[1645937075745,23.7271,87.222,87.152,2.9203971]
[1645937076745,42.96394811,87.223,87.152,11.0903971]
[1645937081971,42.96394811,87.223,87.152,2.9203971]
[1645937083968,42.96394811,87.223,87.153,32.31811073]
[1645937084167,42.96394811,87.223,87.154,2.27237546]
[1645937087470,42.96394811,87.223,87.154,7.82237546]
[1645937087973,42.96394811,87.223,87.155,114.9]
[1645937088172,42.96394811,87.223,87.156,2.65513111]
[1645937090380,23.6268,87.222,87.156,2.65513111]
[1645937091580,23.6268,87.222,87.151,45.99727158]
[1645937093280,23.6268,87.222,87.152,2.54473446]
[1645937095782,42.96394811,87.223,87.153,2.8359392]
[1645937095981,46.45864001,87.239,87.153,2.8359392]
[1645937096183,22.9883,87.238,87.153,2.8359392]
[1645937096984,43.96434562,87.237,87.153,2.8359392]
[1645937097383,43.96434562,87.237,87.16,17.2054]
[1645937097582,43.96434562,87.237,87.162,114.9]
[1645937097784,43.96434562,87.237,87.164,114.9]
[1645937097983,43.96434562,87.237,87.165,2.57211124]
[1645937098583,43.96434562,87.237,87.17,16.57]
[1645937098783,43.96434562,87.237,87.171,2.5885559]
[1645937101288,23.62247606,87.252,87.171,117.4885559]
[1645937101490,22.5108,87.257,87.171,117.4885559]
[1645937101491,22.5108,87.257,87.173,114.9]
[1645937101691,22.5108,87.257,87.174,2.76872874]
[1645937101887,22.5108,87.257,87.175,4.586]
[1645937102287,46.46660155,87.256,87.178,2.33481012]
[1645937102488,46.46660155,87.256,87.181,114.9]
[1645937102687,46.46660155,87.256,87.183,114.9]
[1645937102888,46.46660155,87.256,87.185,114.9]
[1645937103089,46.46660155,87.256,87.187,114.9]
[1645937103290,46.46660155,87.256,87.191,114.9]
[1645937103493,46.46660155,87.256,87.193,54.16000838]
[1645937103890,46.46660155,87.256,87.194,2.97546438]
[1645937109596,46.46660155,87.256,87.195,24.3409]
[1645937109797,46.46660155,87.256,87.196,2.63769282]
[1645937109998,46.46660155,87.256,87.196,7.22269282]
[1645937110397,46.46660155,87.256,87.196,2.63769282]
[1645937110797,46.46660155,87.256,87.195,24.3409]
[1645937111197,23.62247606,87.255,87.195,24.3409]
[1645937111798,2.74678921,87.254,87.195,24.3409]
[1645937112098,27.55018921,87.254,87.195,24.3409]
[1645937112299,29.51836725,87.254,87.195,24.3409]
[1645937112499,50.67266527,87.254,87.195,24.3409]
[1645937113398,48.42587606,87.254,87.195,24.3409]
[1645937119105,24.8034,87.254,87.195,142.20525694]
[1645937119304,24.8034,87.254,87.195,34.69203042]
[1645937119504,24.8034,87.254,87.196,4.585]
[1645937119703,24.8034,87.254,87.196,6.97640944]
[1645937120104,46.46660155,87.256,87.196,6.97640944]
[1645937120306,46.46660155,87.256,87.197,114.9]
[1645937120505,46.46660155,87.256,87.201,114.9]
[1645937120707,46.46660155,87.256,87.203,114.9]
[1645937120906,46.46660155,87.256,87.205,114.9]
[1645937121110,46.46660155,87.256,87.206,6.94485036]
[1645937121710,46.46660155,87.256,87.207,23.2443]
[1645937121907,46.46660155,87.256,87.208,6.8740102]
[1645937124010,46.46660155,87.256,87.208,2.2890102]
[1645937125410,46.46660155,87.256,87.208,117.1890102]
[1645937125611,46.46660155,87.256,87.209,2.48378392]
[1645937129032,23.1131,87.281,87.209,2.48378392]
[1645937129233,23.1131,87.281,87.211,114.9]
[1645937129435,23.1131,87.281,87.212,2.76672396]
[1645937130534,23.1131,87.281,87.231,114.9]
[1645937130733,2.74678921,87.313,87.233,114.9]
[1645937130934,24.7973,87.328,87.234,2.96154458]
[1645937131732,51.2706333,87.327,87.234,2.96154458]
[1645937131935,51.2706333,87.327,87.241,114.9]
[1645937132133,51.2706333,87.327,87.242,2.99199698]
[1645937132335,51.2706333,87.327,87.244,117.57833199]
[1645937132534,51.2706333,87.327,87.245,3.01335294]
[1645937132733,51.2706333,87.327,87.251,114.9]
[1645937132934,51.2706333,87.327,87.251,123.02]
[1645937133534,51.2706333,87.327,87.252,2.91241519]
[1645937135535,51.2706333,87.327,87.261,114.9]
[1645937135736,51.2706333,87.327,87.263,114.9]
[1645937136036,51.2706333,87.327,87.264,2.53074281]
[1645937136437,112.2,87.345,87.264,2.53074281]
[1645937136738,112.2,87.345,87.272,2.65053032]
[1645937137138,112.2,87.345,87.275,2.33226448]
[1645937137538,45.21630775,87.339,87.276,48.02055854]